fUSD/lending_fUSD_20250115
["ID","MTS","AMOUNT","RATE_DAILY","PERIOD"]
[349013260,1736935864187,-687.7,0.00014381,2]
[349013261,1736935864198,-780.28,0.00014381,2]
[349013262,1736935864208,-679.57,0.00014381,2]
[349013263,1736935864387,-1684.71,0.00014381,2]
[349013264,1736935864400,-835.58,0.00014381,2]
[349013265,1736935864410,-500.0,0.00014381,2]
[349013266,1736935864420,-534.4,0.00014381,2]
[349013267,1736935864430,-939.41,0.00014381,2]
[349013268,1736935864440,-524.84,0.00014381,2]
[349013269,1736935864450,-558.94,0.00014382,2]
[349013270,1736935864459,-500.0,0.00014382,2]
[349013271,1736935864469,-1331.31,0.00014382,2]
[349013272,1736935864479,-636.04,0.00014382,2]
[349013273,1736935864488,-807.75,0.00014382,2]
[349013274,1736935864499,-500.0,0.00014382,2]
[349013275,1736935864508,-514.47,0.00014382,2]
[349013276,1736935864518,-500.0,0.00014382,2]
[349013277,1736935864528,-1633.91,0.00014382,2]
[349013278,1736935864537,-706.99,0.00014382,2]
[349013279,1736935864547,-500.0,0.00014382,2]
[349013280,1736935864559,-500.0,0.00014382,2]
[349013281,1736935864568,-500.0,0.00014382,2]
[349013282,1736935864579,-702.35,0.00014382,2]
[349013283,1736935864588,-512.19,0.00014382,2]
[349013284,1736935864598,-152.17,0.00014382,2]
[349013285,1736935864608,-1487.78,0.00014382,2]
[349013286,1736935864617,-500.0,0.00014383,2]
[349013287,1736935864628,-935.49,0.00014383,2]
[349013288,1736935864639,-595.88,0.00014383,2]
[349013289,1736935864648,-500.0,0.00014654,2]
[349013290,1736935864658,-500.0,0.00014655,2]
[349013291,1736935864667,-347.61,0.00014655,2]
[349013292,1736935864677,-300.14,0.00014655,2]
[349013293,1736935864687,-672.64,0.00014655,2]
[349013294,1736935864697,-500.0,0.00014655,2]
[349013295,1736935864707,-968.24,0.00014655,2]
[349013296,1736935864716,-546.21,0.00014655,2]
[349013297,1736935864725,-612.35,0.00014655,2]
[349013298,1736935864735,-687.7,0.00014655,2]
[349013299,1736935864745,-780.28,0.00014655,2]
[349013300,1736935864756,-679.57,0.00014655,2]
[349013301,1736935864767,-1684.71,0.00014655,2]
[349013302,1736935864778,-835.58,0.00014655,2]
[349013303,1736935864788,-500.0,0.00014655,2]
[349013304,1736935864798,-534.4,0.00014655,2]
[349013305,1736935864809,-939.41,0.00014655,2]
[349013306,1736935864819,-524.84,0.00014655,2]
[349013307,1736935864829,-500.0,0.00014656,2]
[349013308,1736935864839,-1331.31,0.00014656,2]
[349013309,1736935864848,-636.04,0.00014656,2]
[349013310,1736935864858,-807.75,0.00014656,2]
[349013311,1736935864868,-500.0,0.00014656,2]
[349013312,1736935864878,-514.47,0.00014656,2]
[349013313,1736935864888,-500.0,0.00014656,2]
[349013314,1736935864898,-1633.91,0.00014656,2]
[349013315,1736935864908,-706.99,0.00014656,2]
[349013316,1736935864918,-500.0,0.00014656,2]
[349013317,1736935864927,-558.96,0.00014656,2]
[349013318,1736935864937,-500.0,0.00014656,2]
[349013319,1736935864947,-702.35,0.00014656,2]
[349013320,1736935864956,-512.19,0.00014656,2]
[349013321,1736935864966,-1487.78,0.00014656,2]
[349013322,1736935864975,-500.0,0.00014657,2]
[349013323,1736935864985,-935.49,0.00014657,2]
[349013324,1736935864995,-595.88,0.00014657,2]
[349013325,1736935865005,-501.77159115,0.00014693,2]
[349013326,1736935865014,-584.67,0.0001487,2]
[349013327,1736935865024,-246.82,0.00014897,2]
[349013328,1736935865035,-500.0,0.00014928,2]
[349013329,1736935865045,-500.0,0.00014929,2]
[349013330,1736935865056,-672.64,0.00014929,2]
[349013331,1736935865066,-500.0,0.00014929,2]
[349013332,1736935865075,-968.24,0.00014929,2]
[349013333,1736935865086,-546.21,0.00014929,2]
[349013334,1736935865096,-612.35,0.00014929,2]
[349013335,1736935865105,-687.7,0.00014929,2]
[349013336,1736935865114,-679.57,0.00014929,2]
[349013337,1736935865125,-780.28,0.00014929,2]
[349013338,1736935865137,-1684.71,0.00014929,2]
[349013339,1736935865147,-835.58,0.00014929,2]
[349013340,1736935865157,-567.3,0.00014929,2]
[349013341,1736935865167,-534.4,0.00014929,2]
[349013342,1736935865176,-939.41,0.00014929,2]
[349013343,1736935865186,-524.84,0.00014929,2]
[349013344,1736935865196,-500.0,0.0001493,2]
[349013345,1736935865206,-1331.31,0.0001493,2]
[349013346,1736935865216,-636.04,0.0001493,2]
[349013347,1736935865226,-156.51568186,0.0001493,2]
[349013348,1736935865235,-807.75,0.0001493,2]
[349013349,1736935865245,-157.24,0.0001493,2]
[349013350,1736935865254,-514.47,0.0001493,2]
[349013351,1736935865264,-412.66,0.0001493,2]
[349013352,1736935865274,-1633.91,0.0001493,2]
[349013353,1736935865284,-706.99,0.0001493,2]
[349013354,1736935865293,-372.44785243,0.0001493,2]
[349013355,1736935865303,-500.0,0.0001493,2]
[349013356,1736935865313,-702.35,0.0001493,2]
[349013357,1736935865324,-512.19,0.0001493,2]
[349013358,1736935865334,-1487.78,0.0001493,2]
[349013359,1736935865344,-841.27,0.00014931,2]
[349013360,1736935865354,-500.0,0.00014931,2]
[349013361,1736935865364,-935.49,0.00014931,2]
[349013362,1736935865374,-595.88,0.00014931,2]
[349013363,1736935865384,-372.42,0.00014941,2]
[349013364,1736935865394,-786.1698061,0.00014964,2]
[349013365,1736935865404,-786.1698061,0.00014971,2]
[349013366,1736935865414,-786.1698061,0.00014971,2]
[349013367,1736935865423,-786.1698061,0.0001499,2]
[349013368,1736935865433,-786.1698061,0.00014995,2]
[349013369,1736935865443,-786.1698061,0.00015,2]
[349013370,1736935865452,-650.0,0.00015,2]
[349013371,1736935865462,-501.77159115,0.00015072,2]
[349013372,1736935865471,-500.0,0.00015202,2]
[349013373,1736935865481,-500.0,0.00015203,2]
[349013374,1736935865490,-672.64,0.00015203,2]
[349013375,1736935865500,-213.84919739,0.00015203,2]
[349013376,1736935865510,-968.24,0.00015203,2]
[349013377,1736935865520,-546.21,0.00015203,2]
[349013378,1736935865529,-612.35,0.00015203,2]
[349013379,1736935865539,-687.7,0.00015203,2]
[349013380,1736935865548,-679.57,0.00015203,2]
[349013381,1736935865557,-780.28,0.00015203,2]
[349013382,1736935865567,-1684.71,0.00015203,2]
[349013383,1736935865577,-835.58,0.00015203,2]
[349013384,1736935865587,-557.63,0.00015203,2]
[349013385,1736935865596,-939.41,0.00015203,2]
[349013386,1736935865606,-524.84,0.00015203,2]
[349013387,1736935865616,-632.41,0.00015204,2]
[349013388,1736935865625,-1331.31,0.00015204,2]
[349013389,1736935865634,-636.04,0.00015204,2]
[349013390,1736935865644,-807.75,0.00015204,2]
[349013391,1736935865653,-514.47,0.00015204,2]
[349013392,1736935865663,-1633.91,0.00015204,2]
[349013393,1736935865672,-706.99,0.00015204,2]
[349013394,1736935865682,-500.0,0.00015204,2]
[349013395,1736935865691,-702.35,0.00015204,2]
[349013396,1736935865701,-512.19,0.00015204,2]
[349013397,1736935865711,-1487.78,0.00015204,2]
[349013398,1736935865721,-841.27,0.00015205,2]
[349013399,1736935865731,-500.0,0.00015205,2]
[349013400,1736935865741,-935.49,0.00015205,2]
[349013401,1736935865751,-595.88,0.00015205,2]
[349013402,1736935865762,-153.0,0.00015411,2]
[349013403,1736935865771,-153.0,0.00015411,2]
[349013404,1736935865782,-153.0,0.00015411,2]
[349013405,1736935865791,-153.0,0.00015411,2]
[349013406,1736935865801,-153.0,0.00015411,2]
[349013407,1736935865812,-153.0,0.00015411,2]
[349013408,1736935865822,-153.0,0.00015411,2]
[349013409,1736935865833,-153.0,0.00015411,2]
[349013410,1736935865846,-153.0,0.00015411,2]
[349013411,1736935865855,-153.0,0.00015411,2]
[349013412,1736935865865,-153.0,0.00015411,2]
[349013413,1736935865874,-153.0,0.00015411,2]
[349013414,1736935865883,-153.0,0.00015411,2]
[349013415,1736935865893,-153.0,0.00015411,2]
[349013416,1736935865903,-153.0,0.00015411,2]
[349013417,1736935865912,-153.0,0.00015411,2]
[349013418,1736935865922,-153.0,0.00015411,2]
[349013419,1736935865932,-153.0,0.00015411,2]
[349013420,1736935865942,-153.0,0.00015411,2]
[349013421,1736935865952,-153.0,0.00015411,2]
[349013422,1736935865963,-153.0,0.00015411,2]
[349013423,1736935865973,-153.0,0.00015411,2]
[349013424,1736935865983,-153.0,0.00015411,2]
[349013425,1736935865994,-153.0,0.00015411,2]
[349013426,1736935866003,-153.0,0.00015411,2]
[349013427,1736935866013,-153.0,0.00015411,2]
[349013428,1736935866023,-153.0,0.00015411,2]
[349013429,1736935866032,-153.0,0.00015411,2]
[349013430,1736935866042,-153.0,0.00015411,2]
[349013431,1736935866052,-153.0,0.00015411,2]
[349013432,1736935866063,-153.0,0.00015411,2]
[349013433,1736935866073,-153.0,0.00015411,2]
[349013434,1736935866082,-153.0,0.00015411,2]
[349013435,1736935866091,-153.0,0.00015411,2]
[349013436,1736935866102,-153.0,0.00015411,2]
[349013437,1736935866112,-153.0,0.00015411,2]
[349013438,1736935866121,-153.0,0.00015411,2]
[349013439,1736935866135,-153.0,0.00015411,2]
[349013440,1736935866145,-153.0,0.00015411,2]
[349013441,1736935866154,-153.0,0.00015411,2]
[349013442,1736935866164,-153.0,0.00015411,2]
[349013443,1736935866174,-153.0,0.00015411,2]
[349013444,1736935866184,-153.0,0.00015411,2]
[349013445,1736935866193,-153.0,0.00015411,2]
[349013446,1736935866204,-153.0,0.00015411,2]
[349013447,1736935866214,-153.0,0.00015411,2]
[349013448,1736935866223,-153.0,0.00015411,2]
[349013449,1736935866233,-153.0,0.00015411,2]
[349013450,1736935866243,-153.0,0.00015411,2]
[349013451,1736935866253,-153.0,0.00015411,2]
[349013452,1736935866262,-153.0,0.00015411,2]
[349013453,1736935866272,-153.0,0.00015411,2]
[349013454,1736935866281,-153.0,0.00015411,2]
[349013455,1736935866291,-153.0,0.00015411,2]
[349013456,1736935866300,-153.0,0.00015411,2]
[349013457,1736935866310,-153.0,0.00015411,2]
[349013458,1736935866320,-153.0,0.00015411,2]
[349013459,1736935866330,-153.0,0.00015411,2]
[349013460,1736935866340,-153.0,0.00015411,2]
[349013461,1736935866350,-153.0,0.00015411,2]
[349013462,1736935866359,-153.0,0.00015411,2]
[349013463,1736935866369,-153.0,0.00015411,2]
[349013464,1736935866379,-153.0,0.00015411,2]
[349013465,1736935866388,-153.0,0.00015411,2]
[349013466,1736935866398,-153.0,0.00015411,2]
[349013467,1736935866407,-153.0,0.00015411,2]
[349013468,1736935866417,-153.0,0.00015411,2]
[349013469,1736935866426,-153.0,0.00015411,2]
[349013470,1736935866436,-153.0,0.00015411,2]
[349013471,1736935866446,-153.0,0.00015411,2]
[349013472,1736935866456,-153.0,0.00015411,2]
[349013473,1736935866466,-153.0,0.00015411,2]
[349013474,1736935866476,-153.0,0.00015411,2]
[349013475,1736935866486,-153.0,0.00015411,2]
[349013476,1736935866495,-153.0,0.00015411,2]
[349013477,1736935866505,-153.0,0.00015411,2]
[349013478,1736935866515,-153.0,0.00015411,2]
[349013479,1736935866524,-153.0,0.00015411,2]
[349013480,1736935866534,-153.0,0.00015411,2]
[349013481,1736935866543,-153.0,0.00015411,2]
[349013482,1736935866553,-153.0,0.00015411,2]
[349013483,1736935866564,-153.0,0.00015411,2]
[349013484,1736935866574,-153.0,0.00015411,2]
[349013485,1736935866583,-153.0,0.00015411,2]
[349013486,1736935866593,-153.0,0.00015411,2]
[349013487,1736935866604,-153.0,0.00015411,2]
[349013488,1736935866616,-153.0,0.00015411,2]
[349013489,1736935866627,-153.0,0.00015411,2]
[349013490,1736935866637,-153.0,0.00015411,2]
[349013491,1736935866648,-153.0,0.00015411,2]
[349013492,1736935866658,-153.0,0.00015411,2]
[349013493,1736935866667,-153.0,0.00015411,2]
[349013494,1736935866676,-153.0,0.00015411,2]
[349013495,1736935866686,-153.0,0.00015411,2]
[349013496,1736935866696,-153.0,0.00015411,2]
[349013497,1736935866706,-153.0,0.00015411,2]
[349013498,1736935866715,-153.0,0.00015411,2]
[349013499,1736935866725,-153.0,0.00015411,2]
[349013500,1736935866734,-153.0,0.00015411,2]
[349013501,1736935866743,-153.0,0.00015411,2]
[349013502,1736935866754,-153.0,0.00015411,2]
[349013503,1736935866765,-153.0,0.00015411,2]
[349013504,1736935866775,-153.0,0.00015411,2]
[349013505,1736935866785,-153.0,0.00015411,2]
[349013506,1736935866795,-153.0,0.00015411,2]
[349013507,1736935866805,-153.0,0.00015411,2]
[349013508,1736935866814,-153.0,0.00015411,2]
[349013509,1736935866825,-153.0,0.00015411,2]
[349013510,1736935866835,-153.0,0.00015411,2]
[349013511,1736935866889,-153.0,0.00015411,2]
[349013512,1736935866899,-153.0,0.00015411,2]
[349013513,1736935866909,-153.0,0.00015411,2]
[349013514,1736935866919,-153.0,0.00015411,2]
[349013515,1736935866930,-153.0,0.00015411,2]
[349013516,1736935866939,-153.0,0.00015411,2]
[349013517,1736935866948,-153.0,0.00015411,2]
[349013518,1736935866958,-153.0,0.00015411,2]
[349013519,1736935866967,-153.0,0.00015411,2]
[349013520,1736935866976,-153.0,0.00015411,2]
[349013521,1736935866986,-153.0,0.00015411,2]
[349013522,1736935866995,-153.0,0.00015411,2]
[349013523,1736935867004,-153.0,0.00015411,2]
[349013524,1736935867015,-153.0,0.00015411,2]
[349013525,1736935867024,-153.0,0.00015411,2]
[349013526,1736935867034,-153.0,0.00015411,2]
[349013527,1736935867043,-153.0,0.00015411,2]
[349013528,1736935867052,-153.0,0.00015411,2]
[349013529,1736935867062,-153.0,0.00015411,2]
[349013530,1736935867072,-153.0,0.00015411,2]
[349013531,1736935867081,-153.0,0.00015411,2]
[349013532,1736935867090,-153.0,0.00015411,2]
[349013533,1736935867100,-153.0,0.00015411,2]
[349013534,1736935867109,-153.0,0.00015411,2]
[349013535,1736935867119,-153.0,0.00015411,2]
[349013536,1736935867132,-153.0,0.00015411,2]
[349013537,1736935867142,-153.0,0.00015411,2]
[349013538,1736935867152,-153.0,0.00015411,2]
[349013539,1736935867162,-153.0,0.00015411,2]
[349013540,1736935867171,-153.0,0.00015411,2]
[349013541,1736935867182,-153.0,0.00015411,2]
[349013542,1736935867192,-153.0,0.00015411,2]
[349013543,1736935867201,-153.0,0.00015411,2]
[349013544,1736935867212,-501.77159115,0.00015452,2]
[349013545,1736935867222,-500.0,0.00015476,2]
[349013546,1736935867232,-500.0,0.00015477,2]
[349013547,1736935867242,-672.64,0.00015477,2]
[349013548,1736935867252,-968.24,0.00015477,2]
[349013549,1736935867261,-546.21,0.00015477,2]
[349013550,1736935867271,-612.35,0.00015477,2]
[349013551,1736935867280,-687.7,0.00015477,2]
[349013552,1736935867290,-679.57,0.00015477,2]
[349013553,1736935867299,-780.28,0.00015477,2]
[349013554,1736935867310,-1684.71,0.00015477,2]
[349013555,1736935867319,-835.58,0.00015477,2]
[349013556,1736935867329,-557.63,0.00015477,2]
[349013557,1736935867338,-939.41,0.00015477,2]
[349013558,1736935867348,-524.84,0.00015477,2]
[349013559,1736935867357,-1331.31,0.00015478,2]
[349013560,1736935867366,-636.04,0.00015478,2]
[349013561,1736935867376,-807.75,0.00015478,2]
[349013562,1736935867385,-514.47,0.00015478,2]
[349013563,1736935867395,-1633.91,0.00015478,2]
[349013564,1736935867405,-706.99,0.00015478,2]
[349013565,1736935867415,-500.0,0.00015478,2]
[349013566,1736935867424,-702.35,0.00015478,2]
[349013567,1736935867433,-512.19,0.00015478,2]
[349013568,1736935867443,-1487.78,0.00015478,2]
[349013569,1736935867453,-841.27,0.00015479,2]
[349013570,1736935867461,-500.0,0.00015479,2]
[349013571,1736935867471,-935.49,0.00015479,2]
[349013572,1736935867481,-595.88,0.00015479,2]
[349013573,1736935867491,-14245.26314607,0.00015657,2]
[349013574,1736935867501,-268.523,0.00015698,2]
[349013575,1736935867510,-3897.0,0.00015698,2]
[349013576,1736935867519,-1174.0,0.00015698,2]
[349013577,1736935867529,-9629.0,0.00015698,2]
[349013578,1736935867538,-500.0,0.0001575,2]
[349013579,1736935867548,-500.0,0.00015751,2]
[349013580,1736935867558,-672.64,0.00015751,2]
[349013581,1736935867567,-968.24,0.00015751,2]
[349013582,1736935867578,-546.21,0.00015751,2]
[349013583,1736935867587,-612.35,0.00015751,2]
[349013584,1736935867597,-687.7,0.00015751,2]
[349013585,1736935867606,-679.57,0.00015751,2]
[349013586,1736935867616,-780.28,0.00015751,2]
[349013587,1736935867625,-1684.71,0.00015751,2]
[349013588,1736935867635,-835.58,0.00015751,2]
[349013589,1736935867644,-557.63,0.00015751,2]
[349013590,1736935867654,-939.41,0.00015751,2]
[349013591,1736935867663,-524.84,0.00015751,2]
[349013592,1736935867673,-1331.31,0.00015752,2]
[349013593,1736935867683,-636.04,0.00015752,2]
[349013594,1736935867692,-807.75,0.00015752,2]
[349013595,1736935867701,-514.47,0.00015752,2]
[349013596,1736935867711,-1633.91,0.00015752,2]
[349013597,1736935867720,-706.99,0.00015752,2]
[349013598,1736935867730,-500.0,0.00015752,2]
[349013599,1736935867739,-702.35,0.00015752,2]
[349013600,1736935867749,-512.19,0.00015752,2]
[349013601,1736935867760,-1487.78,0.00015752,2]
[349013602,1736935867770,-841.27,0.00015753,2]
[349013603,1736935867779,-500.0,0.00015753,2]
[349013604,1736935867790,-935.49,0.00015753,2]
[349013605,1736935867800,-595.88,0.00015753,2]
[349013606,1736935867810,-501.77159115,0.00015831,2]
[349013607,1736935867819,-468.25,0.00016025,2]
[349013608,1736935867829,-672.64,0.00016025,2]
[349013609,1736935867839,-968.24,0.00016025,2]
[349013610,1736935867850,-546.21,0.00016025,2]
[349013611,1736935867859,-612.35,0.00016025,2]
[349013612,1736935867870,-687.7,0.00016025,2]
[349013613,1736935867880,-679.57,0.00016025,2]
[349013614,1736935867890,-780.28,0.00016025,2]
[349013615,1736935867900,-1684.71,0.00016025,2]
[349013616,1736935867911,-835.58,0.00016025,2]
[349013617,1736935867921,-557.63,0.00016025,2]
[349013618,1736935867931,-939.41,0.00016025,2]
[349013619,1736935867941,-524.84,0.00016025,2]
[349013620,1736935867951,-1331.31,0.00016026,2]
[349013621,1736935867962,-636.04,0.00016026,2]
[349013622,1736935867972,-807.75,0.00016026,2]
[349013623,1736935867982,-514.47,0.00016026,2]
[349013624,1736935867993,-1633.91,0.00016026,2]
[349013625,1736935868003,-706.99,0.00016026,2]
[349013626,1736935868012,-500.0,0.00016026,2]
[349013627,1736935868022,-702.35,0.00016026,2]
[349013628,1736935868031,-512.19,0.00016026,2]
[349013629,1736935868041,-1487.78,0.00016026,2]
[349013630,1736935868051,-841.27,0.00016027,2]
[349013631,1736935868060,-212.05,0.00016027,2]
[349013632,1736935868070,-935.49,0.00016027,2]
[349013633,1736935868079,-595.88,0.00016027,2]
[349013634,1736935868090,-693.32,0.000161,2]
[349013635,1736935868099,-500.0,0.00016164,2]
[349013636,1736935868110,-500.0,0.00016164,2]
[349013637,1736935868119,-500.0,0.00016164,2]
[349013638,1736935868131,-2264.249,0.00016199,2]
[349013639,1736935868141,-210.797,0.00016199,2]
[349013640,1736935868150,-501.77159115,0.0001621,2]
[349013641,1736935868161,-672.81,0.00016299,2]
[349013642,1736935868171,-968.31916714,0.00016299,2]
[349013643,1736935868182,-546.4,0.00016299,2]
[349013644,1736935868191,-612.35,0.00016299,2]
[349013645,1736935868201,-687.7,0.00016299,2]
[349013646,1736935868211,-679.57,0.00016299,2]
[349013647,1736935868220,-780.32821613,0.00016299,2]
[349013648,1736935868230,-1684.73049998,0.00016299,2]
[349013649,1736935868240,-807.97,0.00016299,2]
[349013650,1736935868250,-835.59,0.00016299,2]
[349013651,1736935868259,-1633.94207107,0.00016299,2]
[349013652,1736935868269,-557.79,0.00016299,2]
[349013653,1736935868279,-939.64,0.00016299,2]
[349013654,1736935868289,-524.87,0.00016299,2]
[349013655,1736935868300,-1331.31,0.000163,2]
[349013656,1736935868311,-636.04,0.000163,2]
[349013657,1736935868320,-514.47,0.000163,2]
[349013658,1736935868330,-706.99,0.000163,2]
[349013659,1736935868340,-371.74399222,0.000163,2]
[349013660,1736935868350,-702.35,0.000163,2]
[349013661,1736935868360,-512.19,0.000163,2]
[349013662,1736935868371,-1487.78,0.000163,2]
[349013663,1736935868381,-841.45,0.00016301,2]
[349013664,1736935868391,-935.5,0.00016301,2]
[349013665,1736935868401,-596.04166971,0.00016301,2]
[349013666,1736935868411,-1270.726,0.00016413,2]
[349013667,1736935868420,-2021.115,0.00016413,2]
[349013668,1736935868430,-639.379,0.00016413,2]
[349013669,1736935868440,-500.0,0.00016438,2]
[349013670,1736935868450,-687.7,0.00016573,2]
[349013671,1736935868459,-679.57,0.00016573,2]
[349013672,1736935868470,-1331.31,0.00016574,2]
[349013673,1736935868480,-636.04,0.00016574,2]
[349013674,1736935868490,-514.47,0.00016574,2]
[349013675,1736935868501,-706.99,0.00016574,2]
[349013676,1736935868512,-702.35,0.00016574,2]
[349013677,1736935868522,-512.19,0.00016574,2]
[349013678,1736935868533,-1487.78,0.00016574,2]
[349013679,1736935868543,-501.77159115,0.0001659,2]
[349013680,1736935868555,-462.91,0.00016813,2]
[349013681,1736935868565,-687.7,0.00016847,2]
[349013682,1736935868574,-679.57,0.00016847,2]
[349013683,1736935868584,-1331.4,0.00016848,2]
[349013684,1736935868594,-636.05766377,0.00016848,2]
[349013685,1736935868604,-514.47,0.00016848,2]
[349013686,1736935868614,-707.16,0.00016848,2]
[349013687,1736935868624,-702.54,0.00016848,2]
[349013688,1736935868634,-512.28,0.00016848,2]
[349013689,1736935868644,-1487.86706999,0.00016848,2]
[349013690,1736935868654,-501.77159115,0.00016969,2]
[349013691,1736935868664,-700.0,0.00017,2]
[349013692,1736935868674,-687.91,0.00017121,2]
[349013693,1736935868684,-679.6,0.00017121,2]
[349013694,1736935868694,-372.42,0.00017182,2]
[349013695,1736935868704,-175.32189135,0.00017348,2]
[349013696,1736935868715,-501.77159115,0.00017348,2]
[349013697,1736935868725,-501.77159115,0.00017728,2]
[349013698,1736935868735,-700.0,0.0001787,2]
[349013699,1736935868745,-718.55976069,0.0001787,2]
[349013700,1736935868755,-700.0,0.0001797,2]
[349013701,1736935868766,-700.0,0.0001797,2]
[349013702,1736935868776,-700.0,0.0001797,2]
[349013703,1736935868786,-50000.0,0.00018,3]
[349013704,1736935868797,-474.032724,0.00018,5]
[349013705,1736935868806,-2000.0,0.00018082,2]
[349013706,1736935868817,-501.77159115,0.00018107,2]
[349013707,1736935868826,-501.77159115,0.00018486,2]
[349013708,1736935868837,-300.77,0.00018705,2]
[349013709,1736935868847,-989.84,0.00018705,2]
[349013710,1736935868857,-876.97,0.00018705,2]
[349013711,1736935868868,-150.86,0.00018705,2]
[349013712,1736935868879,-300.54,0.00018705,2]
[349013713,1736935868889,-151.04,0.00018705,2]
[349013714,1736935868899,-373.39938888,0.00018725,2]
[349013715,1736935868909,-2000.0,0.00018751,2]
[349013716,1736935868919,-700.0,0.0001877,2]
[349013717,1736935868929,-2079.96,0.000188,7]
[349013718,1736935868939,-501.77159115,0.00018866,2]
[349013719,1736935868949,-1000.0,0.00018891,2]
[349013720,1736935868959,-1000.0,0.00018891,2]
[349013721,1736935868970,-1000.0,0.00018891,2]
[349013722,1736935868980,-1000.0,0.00018891,2]
[349013723,1736935868990,-1000.0,0.00018891,2]
[349013724,1736935869000,-1000.0,0.00018891,2]
[349013725,1736935869010,-1000.0,0.00018891,2]
[349013726,1736935869020,-1000.0,0.00018891,2]
[349013727,1736935869030,-1000.0,0.00018891,2]
[349013728,1736935869041,-1000.0,0.00018891,2]
[349013729,1736935869051,-200.32446925,0.000189,2]
[349013730,1736935869061,-500.0,0.00018904,2]
[349013731,1736935869072,-400.0,0.00018904,2]
[349013732,1736935869082,-750.0,0.00019,2]
[349013733,1736935869092,-365.0,0.00019,2]
[349013734,1736935869102,-1000.0,0.00019,2]
[349013735,1736935869112,-231.0,0.00019,2]
[349013736,1736935869122,-2543.11,0.00019008,2]
[349013737,1736935869136,-2501.16,0.00019015,2]
[349013738,1736935869146,-373.39938888,0.00019019,2]
[349013739,1736935869156,-12500.0,0.0001908,2]
[349013740,1736935869166,-150.0,0.0001911,2]
[349013741,1736935869177,-2501.16,0.00019169,2]
[349013742,1736935869187,-150.0,0.00019178,2]
[349013743,1736935869198,-152.0,0.00019212,3]
[349013744,1736935869208,-373.39938888,0.00019224,2]
[349013745,1736935869218,-501.77159115,0.00019245,2]
[349013746,1736935869228,-854.0,0.00019251,2]
[349013747,1736935869237,-295.2812015,0.00019359,2]
[349013748,1736935869247,-2000.0,0.0001942,2]
[349013749,1736935869256,-372.42,0.00019422,2]
[349013750,1736935869267,-700.0,0.0001947,2]
[349013751,1736935869277,-500.0,0.00019471,2]
[349013752,1736935869286,-4690.33,0.00019483,2]
[349013753,1736935869296,-3000.0,0.000195,2]
[349013754,1736935869306,-1500.0,0.000195,2]
[349013755,1736935869316,-501.77159115,0.00019624,2]
[349013756,1736935869326,-26286.93975419,0.00019653,14]
[349013757,1736935869336,-500.0,0.00019655,2]
[349013758,1736935869346,-1658.293,0.00019655,2]
[349013759,1736935869356,-220.0,0.00019655,2]